Cogmind - Beta 12 @@@ ROGUE MODE // 2023.04.06 @ 18:26:55 Player: steven Result: Self-destructed Performance ------------- Evolutions (1) 500 Regions Visited (2) 400 Robots Destroyed (16) 80 Value Destroyed (464) 464 Prototype IDs (2) 40 Alien Tech Used (0) 0 Bonus (8) 8 TOTAL SCORE: 1492 Bonus ------- High Alert Combat Kills 8 Cogmind --------- Core Integrity 194/400 Matter 178/300 Energy 250/250 System Corruption 5% Temperature Cool (0) Movement Core (500) Ox9 Location -9/Materials Parts ------- > --- POWER (1) -------- Ion Engine > --- PROPULSION (3) --- (None) > --- UTILITY (3) ------ Large Storage Unit Utility Shielding > --- WEAPON (2) ------- Hammer > --- INVENTORY (15) --- Ion Engine Ion Engine Light Treads Light Treads Utility Shielding Utility Shielding Medium Laser Particle Gun Particle Gun Particle Gun Particle Gun Beam Cannon Grenade Launcher Grenade Launcher Peak State ------------ > --- POWER ------------ Ion Engine > --- PROPULSION ------- Light Treads Light Treads Aluminum Leg > --- UTILITY ---------- Large Storage Unit Utility Shielding > --- WEAPON ----------- Grenade Launcher Hammer > --- INVENTORY -------- Ion Engine Ion Engine Aluminum Leg Aluminum Leg Utility Shielding Utility Shielding Utility Shielding Medium Laser Particle Gun Particle Gun Particle Gun Particle Gun Beam Cannon Grenade Launcher [Rating: 9] Favorites ----------- Power Ion Engine Engine Ion Engine Propulsion Light Treads Treads Light Treads Leg Aluminum Leg Utility Large Storage Unit Device Terrain Scanner Storage Large Storage Unit Protection Utility Shielding Weapon Grenade Launcher Energy Gun EM Pulse Gun Launcher Grenade Launcher Impact Weapon Hammer Build | -11 -10 -9 ------- Run | Jun Mat Mat Slots Evolved 2 | . . 2 Power . | . . . Propulsion 1 | . . 1 Utility 1 | . . 1 Weapon . | . . . Parts Attached 19 | 6 9 4 Power 3 | 1 2 . Engine 3 | 1 2 . Core . | . . . Reactor . | . . . Propulsion 5 | 2 . 3 Treads 2 | 2 . . Leg 3 | . . 3 Wheel . | . . . Hover . | . . . Flight . | . . . Utility 6 | 1 4 1 Device 1 | . 1 . Storage 3 | 1 2 . Processor . | . . . Hackware . | . . . Protection 2 | . 1 1 Artifact . | . . . Weapon 5 | 2 3 . Energy Gun 2 | 2 . . Energy Cannon . | . . . Ballistic Gun . | . . . Ballistic Cannon . | . . . Launcher 2 | . 2 . Special Weapon . | . . . Impact Weapon 1 | . 1 . Slashing Weapon . | . . . Piercing Weapon . | . . . Special Melee Weapon . | . . . Unidentified Prototypes . | . . . Parts Lost 4 | . . 4 Power . | . . . Propulsion 3 | . . 3 Utility 1 | . . 1 Weapon . | . . . Highest Loss Streak 4 | . . 4 To Critical Strikes . | . . . Average Slot Usage (%) 88 | . 89 83 Engine 13 | . 14 11 Treads 24 | . 28 . Leg 3 | . . 29 Device 2 | . 3 . Storage 13 | . 14 11 Protection 4 | . 2 19 Energy Gun 4 | . 5 . Launcher 11 | . 13 1 Impact Weapon 8 | . 7 11 Naked Turns . | . . . Heaviest Build 31 | 13 31 29 Greatest Support 40 | 40 40 30 Greatest Overweight (x) . | . . . Average Overweight (x) . | . . . Largest Inventory Capacity 15 | 8 15 15 Average Capacity 13 | 6 13 15 Most Carried 15 | . 15 15 Average Carried 5 | . 5 14 Final Capacity 15 | 8 15 15 Final Carried 15 | . 15 14 Class Distribution -------------------- 89% | Mutant 10% | Scavenger-Mutant Dominant Class ---------------- Mutant | -10/Materials Scavenger-Mutant | -9/Materials Resources | -11 -10 -9 ----------- Run | Jun Mat Mat Matter Collected 428 | 170 258 . Remotely . | . . . Salvage Created 416 | . 416 . Parts 26 | . 26 . Haulers Intercepted . | . . . Recyclers Shooed 1 | . 1 . Parts Field Recycled . | . . . Retrieved Matter . | . . . Parts Self-Destructed . | . . . Prevented . | . . . Kills | -11 -10 -9 ------- Run | Jun Mat Mat Combat Hostiles Destroyed 11 | . 11 . Melee 2 | . 2 . Guns 3 | . 3 . AOE 6 | . 6 . Classes Destroyed 4 | . 4 . Worker 2 | . 2 . Tunneler 1 | . 1 . Watcher 2 | . 2 . Grunt 11 | . 11 . Best Kill Streak 5 | . 5 . Combat Bots Only 3 | . 3 . Max Kills in Single Turn 2 | . 2 . Gunslinging . | . . . Exploded 1 | . 1 . Melee 1 | . 1 . Uniques/NPCs Destroyed . | . . . Combat | -11 -10 -9 -------- Run | Jun Mat Mat Damage Taken 863 | . 225 638 Core 218 | . 12 206 Absorbed by Shields . | . . . Redirected to Shielding 18 | . . 18 Core Remaining (%) 97 | 100 95 . Volleys Fired 27 | . 27 . Largest 2 | . 2 . Hottest 70 | . 70 . Shots Fired 39 | . 39 . Gun 21 | . 21 . Cannon . | . . . Launcher 18 | . 18 . Special . | . . . Kinetic . | . . . Thermal . | . . . Explosive 18 | . 18 . Electromagnetic 21 | . 21 . Robot Hit Streak 4 | . 4 . Robot Miss Streak 3 | . 3 . Penetration Max . | . . . Secondary Targets . | . . . Shots Hit Robots 32 | . 24 8 Core Hits 26 | . 26 . Critical Kills . | . . . Critical Parts Destroyed 2 | . 1 1 Critical Strikes 3 | . 2 1 Corrupt 1 | . 1 . Smash 2 | . 1 1 Melee Attacks 14 | . 5 9 Impact 14 | . 5 9 Slashing . | . . . Piercing . | . . . Sneak Attacks . | . . . Combat Hostiles . | . . . Follow-up Attacks . | . . . Damage Inflicted 1221 | . 1034 187 Guns 217 | . 217 . Cannons . | . . . Explosions 711 | . 711 . Melee 293 | . 106 187 Ramming . | . . . Kinetic . | . . . Thermal . | . . . Explosive 711 | . 711 . Electromagnetic 217 | . 217 . Impact 293 | . 106 187 Slashing . | . . . Piercing . | . . . Highest Corruption 5 | . . 5 Average Corruption 4 | . . 4 Corruption Purged . | . . . Corruption Blocked . | . . . Overload Shots . | . . . Overflow Damage 81 | . 53 28 Projectiles . | . . . Explosions 20 | . 20 . Melee 61 | . 33 28 Knockbacks . | . . . Impact . | . . . Kinetic . | . . . Secondary . | . . . Self-Inflicted Damage 32 | . 32 . Shots 2 | . 2 . Rammed . | . . . Targets Rammed . | . . . Kicked . | . . . Crushed . | . . . Highest Temperature 84 | . 84 15 Average Temperature 25 | . 26 9 Received Heat Transfer 408 | . 108 300 Siege Activations . | . . . Robots Corrupted . | . . . Combat Hostiles . | . . . Parts Fried 2 | . 2 . Impact Corruptions 3 | . 2 1 Robots Melted . | . . . Combat Hostiles . | . . . Parts Melted . | . . . Heat Transferred . | . . . Parts Sabotaged . | . . . Parts Stolen . | . . . Parts Stripped . | . . . Power Chain Reactions . | . . . Missiles Intercepted . | . . . Alert | -11 -10 -9 ------- Run | Jun Mat Mat Peak Influence 417 | . 417 144 Initial 114 | . . 114 Average 206 | . 236 121 Maximum Alert Level 2 | . 2 . Low Security (%) 44 | 100 30 100 Level 1 48 | . 60 . Level 2 7 | . 8 . Level 3 . | . . . Level 4 . | . . . Level 5 . | . . . High Security . | . . . Max Security . | . . . Squads Dispatched 3 | . 3 . Investigation 2 | . 2 . Extermination . | . . . Reinforcement 1 | . 1 . Assault . | . . . Garrison . | . . . Intercept . | . . . Searches Triggered . | . . . Construction Impeded . | . . . Haulers Reinforced . | . . . Active Scanning Responses . | . . . Cargo Convoy Interrupts . | . . . Stealth | -11 -10 -9 --------- Run | Jun Mat Mat Distress Signals 2 | . 2 . Communications Jammed . | . . . Distress Signals . | . . . Times Spotted 24 | . 17 7 Peak Tracking Total 6 | . 3 6 Tactical Retreats 3 | . 2 1 Traps | -11 -10 -9 ------- Run | Jun Mat Mat Traps Triggered 2 | . 2 . Indirectly . | . . . Trap Hack Attempts . | . . . Triggered . | . . . Disarmed . | . . . Reprogrammed . | . . . Reused . | . . . Traps Extracted . | . . . Installed . | . . . Triggered . | . . . Machines | -11 -10 -9 ---------- Run | Jun Mat Mat Machines Disabled 1 | . 1 . Max in Single Turn 1 | . 1 . Machines Repaired . | . . . Machines Sabotaged . | . . . Overloaded Fab Kills . | . . . Hacking | -11 -10 -9 --------- Run | Jun Mat Mat Machines Accessed 3 | . 2 1 Terminals 3 | . 2 1 Fabricators . | . . . Repair Stations . | . . . Recycling Units . | . . . Scanalyzers . | . . . Garrison Access . | . . . Total Hacks 10 | . 8 2 Successful 2 | . 2 . Failed 8 | . 6 2 Catastrophic 2 | . 2 . Database Lockouts . | . . . Manual 5 | . 3 2 Terminals 10 | . 8 2 Fabricators . | . . . Repair Stations . | . . . Recycling Units . | . . . Scanalyzers . | . . . Garrison Access . | . . . Terminal Hacks 2 | . 2 . Prototype ID Bank 1 | . 1 . Alert Level 1 | . 1 . Fabricator Hacks . | . . . Repair Station Hacks . | . . . Recycling Unit Hacks . | . . . Scanalyzer . | . . . Garrison Access Hacks . | . . . Unauthorized Hacks . | . . . Terminals . | . . . Fabricators . | . . . Repair Stations . | . . . Recycling Units . | . . . Scanalyzers . | . . . Garrison Access . | . . . Data Cores Recovered . | . . . Used . | . . . Hacking Detections 3 | . 2 1 Full Trace Events 1 | . . 1 Feedback Events . | . . . Feedback Blocked . | . . . Robot Schematics Acquired . | . . . Robots Built . | . . . Authchips . | . . . Time . | . . . Total Robot Build Rating . | . . . Part Schematics Acquired . | . . . Parts Built . | . . . Authchips . | . . . Time . | . . . Total Part Build Rating . | . . . Parts Repaired . | . . . Time . | . . . Parts Recycled . | . . . Recycled Matter . | . . . Retrieved Matter . | . . . Retrieved Components . | . . . Parts Scanalyzed . | . . . Part Schematics Acquired . | . . . Parts Damaged . | . . . Bothacking | -11 -10 -9 ------------ Run | Jun Mat Mat Used RIF Installer . | . . . Robots Hacked . | . . . Non-combat . | . . . Combat . | . . . Robot Hacks Applied . | . . . Relay Couplers Released . | . . . Fabnet Peak Effective % . | . . . Robots Rewired . | . . . Allies Hacked . | . . . Hacks Repelled . | . . . Allies | -11 -10 -9 -------- Run | Jun Mat Mat Total Allies . | . . . Largest Group . | . . . Highest-Rated Group . | . . . Highest-Rated Ally . | . . . Total Orders . | . . . Ally Attacks . | . . . Total Damage . | . . . Kills . | . . . Allies Corrupted . | . . . Allies Melted . | . . . Intel | -11 -10 -9 ------- Run | Jun Mat Mat Robot Analysis Total . | . . . Derelict Logs Recovered . | . . . Drone Launches . | . . . Drone Recoveries . | . . . Exploration | -11 -10 -9 ------------- Run | Jun Mat Mat Turns Passed 799 | 58 647 94 Spaces Moved 392 | 33 311 48 Core 2 | 2 . . Treads 342 | 31 311 . Legs 48 | . . 48 Wheels . | . . . Hover . | . . . Flight . | . . . Fastest Speed 50 | 50 160 120 Average Speed 154 | 153 160 120 Slowest Speed 160 | 160 160 120 Overloaded Moves . | . . . Propulsion Burnouts . | . . . Robots Hopped . | . . . Cave-ins Triggered . | . . . Exploration Rate (%) 16 | 3 43 4 Regions Visited 2 Branch Regions . Pre-discovered Areas . | . . . Known Exits Taken . | . . . Unknown Exits Taken 2 | 1 1 . Scrap Searched . | . . . Spaces Dug . | . . . Terrain Destroyed 100 | . 100 . Melee . | . . . Projectile . | . . . AOE 100 | . 100 . Terrain Rammed . | . . . Walls Destroyed . | . . . Machines Disabled . | . . . Actions | -11 -10 -9 --------- Run | Jun Mat Mat Total 520 | 38 413 69 Wait 42 | . 36 6 Move 390 | 32 310 48 Hop . | . . . Pick Up 17 | . 17 . Fast Attach 12 | 6 6 . Attach 4 | . 1 3 Detach 2 | . . 2 Swap 3 | . 2 1 Drop 9 | . 9 . Fire 27 | . 27 . Melee 14 | . 5 9 Ram . | . . . Kick . | . . . Crush . | . . . Escape Stasis . | . . . Rewire . | . . . Trap . | . . . Miscellaneous . | . . . Route ------- -11/Junkyard -10/Materials -9/Materials History --------- Turn | Location | Event 7 | -11/Junkyard | Discovered new exit (range 16) 59 | -11/Junkyard | Entered Materials 328 | -10/Materials | Build established: Mutant 631 | -10/Materials | Discovered new exit (range 14) 706 | -10/Materials | Entered another Materials area 706 | -9/Materials | Evolved 2 slots: Propulsion x1, Utility x1 800 | -9/Materials | Core integrity fell below 50% 800 | -9/Materials | Self-destructed Last Messages --------------- GOAL=ESCAPE 00738_ Connecting with Terminal... 00738_ Current location identified: Materials 00778_ Critical hit (Burn: +37). 00784_ C-30 ARC bursts open, deploying its payload. 00785_ Y-45 Defender suffers critical hit (Smash). 00785_ Destroyed Imp. Ion Engine. 00785_ Y-45 Defender system corrupted by crushing effect. 00786_ Critical hit (Burn: +37). 00788_ Critical hit (Smash). 00791_ Aluminum Leg destroyed. 00792_ Critical hit (Burn: +37). 00792_ Aluminum Leg destroyed. 00793_ Y-45 Defender suffers critical hit (Burn). 00794_ Aluminum Leg destroyed. 00794_ System corrupted by crushing effect (+3). 00795_ Y-45 Defender misfires. 00797_ Utility Shielding destroyed. 00797_ System corrupted by crushing effect (+2). 00798_ Critical hit (Burn: +37). Map ----- +----------------------------------------------------+ | | | | | | | | | | | | | | | | | ?????????????????????????????????????????????????? | | ?????????????????????????????????????????????????? | | ?????????????????????????????????????????????????? | | ?????????????????????????????????????????????????? | | ?????????###########?????????????????????????????? | | ?????????# """T""" #?????????????????????????????? | | ?????????# #?????????????????????????????? | | ?????????# #?????????????????????????????? | | ?????????# """ """ #?????????????????????????????? | | ?????????# """ """ #?????????????????????????????? | | ?????????# """ """ #?????????????????????????????? | | ?????????# #?????????????????????????????? | | ?????????#! #?????????????????????????????? | | ?#############+######### #???????????????????????? | | ?# #???????????????????????? | | ?# ##+############ #????????????? | | ?# # bY/% +????????????? | | ?################ a Y @##### #????????????? | | ????????????????# g #??????????????????????? | | ????????????????# g #??????????????????????? | | ????????????????######/####??????????????????????? | | ?????????????????????# ??????????????????????????? | | ?????????????????????#???????????????????????????? | | ?????????????????????????????????????????????????? | | ?????????????????????????????????????????????????? | | ?????????????????????????????????????????????????? | | ?????????????????????????????????????????????????? | | ?????????????????????????????????????????????????? | | ?????????????????????????????????????????????????? | | ?????????????????????????????????????????????????? | | ?????????????????????????????????????????????????? | | ?????????????????????????????????????????????????? | | ?????????????????????????????????????????????????? | | ?????????????????????????????????????????????????? | | ?????????????????????????????????????????????????? | | ?????????????????????????????????????????????????? | | ?????????????????????????????????????????????????? | | ?????????????????????????????????????????????????? | | ?????????????????????????????????????????????????? | | ?????????????????????????????????????????????????? | | ?????????????????????????????????????????????????? | | ?????????????????????????????????????????????????? | +----------------------------------------------------+ Best States ------------- Heat Dissipation 28 Energy Generation 10 Energy Capacity 250 Matter Stores 210 Matter Capacity 300 Sight Range 16 Terrain Scan Range 14 Terrain Scan Density 10 Utility Shielding 33 Evasion (%) 50 Recoil Reduction 2 Item Schematics ----------------- None Robot Schematics ------------------ None Fabricated ------------ Nothing Alien Tech Used ----------------- None Achievements -------------- None Challenges ------------ None Game ------ Seed MachineAnalysisScreen Manual? 0 Play Time 00:11:02 Cumulative 19.2 hours Start 2023.04.06 @ 18:17:30 End 2023.04.06 @ 18:26:55 Sessions 1 Manual Loads 0 Difficulty Rogue Special Mode None Game No. 33 Rogue 24 Adventurer 9 Explorer 0 Win Type - Total 0 Types 0/0/0/0/0/0/0/0/0 Lore% 13 Gallery% 20 Achievement% 16 Wizard Run 0 Options --------- ASCII 0 Keyboard 0 Movement Mouse Keybinds 0 Fullscreen 1 Font 18/X11Bold Map View 76x50 Tactical HUD 1 Map Filters NONE Filters NONE Steam 1 RUN: 0f07e098-3322-4469-94d5-5ca12d6dc13b